bitfinex/quotes_SOLUSD_20250514
["timestamp","ask_amount","ask_price","bid_price","bid_amount"]
[1747227158689,5.53311569,180.73,180.67,19.26]
[1747227159393,19.36590493,180.73,180.67,19.26]
[1747227161460,12.12870649,180.72,180.67,19.26]
[1747227162792,19.36804825,180.71,180.67,19.26]
[1747227165295,13.83432018,180.71,180.67,19.26]
[1747227166600,5.53342186,180.72,180.67,19.26]
[1747227167299,13.83246693,180.74,180.67,19.26]
[1747227169502,19.36527649,180.74,180.67,19.26]
[1747227172682,19.36527649,180.74,180.65,31.53555522]
[1747227172911,19.36527649,180.74,180.66,38.32]
[1747227173515,13.83246693,180.74,180.66,38.32]
[1747227174680,19.36527649,180.74,180.66,38.32]
[1747227174977,12.12870649,180.72,180.65,26.0]
[1747227175209,12.12870649,180.71,180.66,19.06]
[1747227175501,12.12870649,180.69,180.64,1.6129]
[1747227175708,12.12870649,180.68,180.64,1.6129]
[1747227175904,12.12870649,180.7,180.64,1.6129]
[1747227176284,26.0,180.71,180.64,1.6129]
[1747227176285,12.12870649,180.69,180.64,1.6129]
[1747227176703,19.3712641,180.68,180.64,1.6129]
[1747227180487,31.49997059,180.68,180.64,1.6129]
[1747227180695,12.12870649,180.65,180.61,19.06]
[1747227180889,12.12870649,180.63,180.6,1.6141]
[1747227181622,0.14216157,180.65,180.57,38.12]
[1747227181801,19.3712641,180.68,180.58,26.0]
[1747227182003,31.49997059,180.68,180.58,26.0]
[1747227182220,12.12870649,180.66,180.58,26.0]
[1747227182417,31.50426007,180.64,180.57,38.12]
[1747227182610,12.12870649,180.63,180.57,38.12]
[1747227182787,19.37555358,180.64,180.57,38.12]
[1747227182995,31.50426007,180.64,180.57,38.12]
[1747227183308,12.12870649,180.63,180.57,38.12]
[1747227183702,31.50426007,180.64,180.57,38.12]
[1747227183898,12.12870649,180.63,180.57,38.12]
[1747227184401,31.50747842,180.61,180.55,27.6136]
[1747227184627,31.50747842,180.61,180.55,47.1936]
[1747227184821,31.50747842,180.61,180.56,19.58]
[1747227184822,19.37877193,180.61,180.56,19.58]
[1747227187104,0.14216157,180.63,180.56,19.58]
[1747227187310,12.12870649,180.62,180.56,19.58]
[1747227188825,12.41302963,180.63,180.56,19.58]
[1747227189123,19.37769902,180.62,180.56,19.58]
[1747227189733,5.53648543,180.62,180.56,19.58]
[1747227190611,19.37769902,180.62,180.56,19.58]
[1747227191925,5.53617892,180.63,180.56,19.58]
[1747227192104,19.37662624,180.63,180.56,19.58]
[1747227193835,12.12870649,180.62,180.56,19.58]
[1747227194801,31.50533273,180.63,180.56,19.58]
[1747227197619,12.12870649,180.62,180.56,19.58]
[1747227197820,12.12870649,180.62,180.55,47.1536]
[1747227198027,31.50533273,180.63,180.55,47.1536]
[1747227199539,19.37662624,180.63,180.55,47.1536]
[1747227199726,5.53617892,180.63,180.55,52.69219715]
[1747227200625,19.37371283,180.66,180.55,52.69219715]
[1747227201215,19.37371283,180.66,180.55,51.07859715]
[1747227201526,19.37371283,180.66,180.59,26.0]
[1747227202420,12.12870649,180.67,180.59,26.0]
[1747227203310,12.12870649,180.68,180.59,26.0]
[1747227204546,5.53495322,180.67,180.59,26.0]
[1747227204913,19.37233629,180.67,180.59,26.0]
[1747227205313,12.12870649,180.66,180.59,26.0]
[1747227205544,12.12870649,180.65,180.57,19.06]
[1747227205745,12.12870649,180.65,180.56,7.7621]
[1747227205914,12.12870649,180.64,180.56,7.7621]
[1747227206116,0.28432314,180.65,180.56,7.7621]
[1747227206314,12.41302963,180.65,180.56,7.7621]
[1747227206580,19.37662624,180.63,180.56,7.7621]
[1747227207231,31.50533273,180.63,180.56,7.7621]
[1747227207545,12.12870649,180.62,180.56,7.7621]
[1747227208644,19.37877193,180.61,180.56,7.7621]
[1747227211459,13.84197995,180.61,180.56,7.7621]
[1747227213453,19.37877193,180.61,180.56,7.7621]
[1747227213659,12.12870649,180.6,180.56,1.5276]
[1747227215727,5.53740517,180.59,180.56,1.5276]
[1747227216455,5.53740517,180.59,180.52,1.606]
[1747227216456,31.50962458,180.59,180.52,1.606]
[1747227216753,12.12870649,180.57,180.52,1.606]
[1747227217761,12.12870649,180.55,180.52,1.606]
[1747227218646,12.12870649,180.54,180.52,1.606]
[1747227220363,19.38413823,180.56,180.52,1.606]
[1747227220539,5.53924555,180.53,180.52,1.606]
[1747227221249,5.53924555,180.53,180.47,18.19842022]
[1747227221450,12.12870649,180.52,180.47,19.80972022]
[1747227222339,12.12870649,180.51,180.47,13.31382022]
[1747227222549,5.5401662,180.5,180.47,13.31382022]
[1747227223141,5.53991972,180.51,180.47,13.31382022]
[1747227226042,39.84525602,180.57,180.47,13.31382022]
[1747227226353,51.97396251,180.57,180.47,13.31382022]
[1747227226940,5.53832521,180.56,180.47,44.85487632]
[1747227227336,17.6670317,180.56,180.47,44.85487632]
[1747227227670,19.38413823,180.56,180.47,13.31382022]
[1747227227838,12.12870649,180.5,180.47,13.31382022]
[1747227228373,12.12870649,180.51,180.47,13.31382022]
[1747227228743,5.5401662,180.5,180.47,13.31382022]
[1747227231366,17.66887269,180.5,180.47,13.31382022]
[1747227231576,12.12870649,180.49,180.47,11.70252022]
[1747227231878,12.12870649,180.48,180.47,11.70252022]
[1747227233188,17.66948663,180.48,180.47,11.70252022]
[1747227235886,31.52143698,180.48,180.43,1.5861]
[1747227236056,31.52143698,180.48,180.39,25.6735]
[1747227236057,12.12870649,180.44,180.39,27.3243]
[1747227236603,12.12870649,180.44,180.39,8.2243]
[1747227236770,12.12870649,180.43,180.39,1.6508]
[1747227237160,12.12870649,180.42,180.39,1.6508]
[1747227237373,12.12870649,180.41,180.39,1.6508]
[1747227237569,5.54323725,180.4,180.37,19.1]
[1747227238398,17.67194374,180.4,180.35,8.1234]
[1747227238598,17.67194374,180.4,180.35,1.5427]
[1747227238599,5.54323725,180.4,180.35,1.5427]
[1747227238766,17.67194374,180.4,180.35,1.5427]
[1747227241794,12.12870649,180.39,180.35,1.5427]
[1747227243700,12.12870649,180.38,180.35,1.5427]
[1747227243873,5.54415922,180.37,180.35,1.5427]
[1747227244108,12.12870649,180.36,180.3,19.38]
[1747227244380,12.12870649,180.36,180.29,35.17835121]
[1747227245012,12.12870649,180.34,180.29,15.95835121]
[1747227245307,12.12870649,180.34,180.27,6.0336]
[1747227245308,12.12870649,180.32,180.26,19.2]
[1747227245675,12.12870649,180.34,180.26,19.2]
[1747227245872,5.545389,180.33,180.26,19.2]
[1747227247371,5.545389,180.33,180.26,24.74747525]
[1747227247598,5.54415922,180.37,180.26,24.74747525]
[1747227247906,5.54415922,180.37,180.28,26.0]
[1747227248809,17.67286571,180.37,180.28,26.0]
[1747227249682,17.67286571,180.37,180.28,31.54687955]
[1747227250196,5.54415922,180.37,180.28,31.54687955]
[1747227250398,17.67286571,180.37,180.28,31.54687955]
[1747227252195,31.53326378,180.37,180.28,26.0]
[1747227252396,12.12870649,180.35,180.28,26.0]
[1747227252919,12.12870649,180.36,180.28,31.54690902]
[1747227253086,31.53326378,180.37,180.28,31.54690902]
[1747227253900,19.40455729,180.37,180.28,31.54690902]
[1747227255782,25.98910456,180.37,180.28,31.54690902]
[1747227256409,25.98910456,180.37,180.28,26.0]
[1747227256883,12.12870649,180.36,180.28,26.0]
[1747227257090,12.12870649,180.36,180.28,19.18]
[1747227257091,12.12870649,180.33,180.28,19.18]
[1747227257408,12.12870649,180.33,180.27,19.18]
[1747227257914,5.54569653,180.32,180.27,19.18]
[1747227258715,19.40993787,180.32,180.25,20.7637]
[1747227258901,31.53864436,180.32,180.26,19.2]
[1747227259613,31.53864436,180.32,180.25,1.5437]
[1747227259614,12.12870649,180.27,180.25,1.5437]
[1747227259911,12.12870649,180.27,180.24,3.52272727]
[1747227259912,5.54754243,180.26,180.24,3.52272727]
[1747227260423,12.12870649,180.25,180.24,3.52272727]
[1747227261426,17.67655669,180.25,180.24,3.52272727]
[1747227262390,36.61052869,180.25,180.24,3.52272727]
[1747227265117,62.61052869,180.25,180.24,3.52272727]
[1747227265792,36.61052869,180.25,180.24,3.52272727]
[1747227266914,62.61052869,180.25,180.24,3.52272727]
[1747227267216,5.5478502,180.25,180.24,3.52272727]
[1747227267423,17.67655669,180.25,180.24,3.52272727]
[1747227268335,5.5478502,180.25,180.24,3.52272727]
[1747227268510,17.67655669,180.25,180.24,3.52272727]
[1747227270611,5.5478502,180.25,180.24,3.52272727]
[1747227272096,17.67655669,180.25,180.24,3.52272727]
[1747227273207,36.61052869,180.25,180.24,3.52272727]
[1747227277235,62.61052869,180.25,180.24,3.52272727]
[1747227279058,17.67655669,180.25,180.24,3.52272727]
[1747227279340,5.5478502,180.25,180.24,3.52272727]
[1747227279646,17.67655669,180.25,180.24,3.52272727]
[1747227280144,17.96087983,180.25,180.24,3.52272727]
[1747227283742,36.61052869,180.25,180.24,3.52272727]
[1747227285920,0.28432314,180.2,180.16,1.5695]
[1747227286120,12.12870649,180.17,180.16,1.5695]
[1747227287256,17.67902008,180.17,180.16,1.5695]
[1747227288067,5.55031359,180.17,180.16,1.5695]
[1747227289329,5.55000555,180.18,180.16,1.5695]
[1747227289927,5.54908162,180.21,180.16,1.5695]
[1747227290818,31.55049217,180.21,180.16,1.5695]
[1747227291020,12.12870649,180.19,180.16,1.5695]
[1747227291667,5.55000555,180.18,180.16,1.5695]
[1747227293557,5.55000555,180.18,180.12,19.14]
[1747227293851,19.42501942,180.18,180.12,19.14]
[1747227295755,5.54969754,180.19,180.12,19.14]
[1747227297756,31.55264788,180.19,180.12,19.14]
[1747227297964,5.54969754,180.19,180.12,19.14]
[1747227298851,5.54908162,180.21,180.14,6.0658]
[1747227299039,5.5463117,180.3,180.18,26.42851043]
[1747227299231,12.12870649,180.29,180.19,38.36]
[1747227299557,5.5472347,180.27,180.19,38.36]
[1747227300255,12.12870649,180.25,180.19,38.36]
[1747227300431,12.12870649,180.24,180.19,19.14]
[1747227300637,12.12870649,180.23,180.19,19.14]
[1747227301037,12.10041639,180.23,180.19,19.14]
[1747227301961,5.54877372,180.22,180.19,19.14]
[1747227302258,19.42070802,180.22,180.18,7.6367]
[1747227302429,31.54941451,180.22,180.18,7.6367]
[1747227303064,12.12870649,180.19,180.14,1.6275]
[1747227303877,17.67932815,180.16,180.11,6.5503]
[1747227304212,17.67932815,180.16,180.1,20.6641]
[1747227304356,12.12870649,180.15,180.1,1.5241]
[1747227305974,5.55123792,180.14,180.1,1.5241]
[1747227306340,19.42933273,180.14,180.1,1.5241]
[1747227307562,12.12870649,180.13,180.1,1.5241]
[1747227307767,12.12870649,180.13,180.07,6.4282]
[1747227307975,5.55185431,180.12,180.06,25.61552121]
[1747227310053,17.6805608,180.12,180.06,25.61552121]
[1747227310253,31.55185431,180.12,180.06,4.96212121]
[1747227310455,12.12870649,180.09,180.06,4.96212121]
[1747227311185,12.12870649,180.11,180.06,4.96212121]
[1747227311733,31.56019659,180.12,180.06,4.96212121]
[1747227311856,5.55185431,180.12,180.06,4.96212121]
[1747227312058,26.00646862,180.15,180.07,7.863]
[1747227312578,12.12870649,180.15,180.07,7.863]
[1747227312782,17.67932815,180.16,180.07,7.863]
[1747227312981,17.67932815,180.16,180.08,19.14]
[1747227313483,12.12870649,180.15,180.08,19.14]
[1747227313684,5.55123792,180.14,180.08,19.14]
[1747227315567,5.55099202,180.15,180.08,24.69293345]
[1747227315774,12.12870649,180.16,180.08,24.69293345]
[1747227316186,12.12870649,180.16,180.08,19.14]
[1747227317098,19.42439698,180.19,180.08,24.69296505]
[1747227317301,12.12870649,180.17,180.08,24.69296505]
[1747227317494,12.12870649,180.16,180.08,24.69296505]
[1747227317675,12.12870649,180.16,180.08,19.14]
[1747227318181,5.55092978,180.15,180.08,19.14]
[1747227318793,5.55092978,180.15,180.08,24.69304127]
[1747227319803,17.67963627,180.15,180.08,19.14]
[1747227320178,17.67963627,180.15,180.08,24.69306251]
[1747227320492,5.55000555,180.18,180.08,24.69306251]
[1747227320697,12.12870649,180.17,180.08,24.69306251]
[1747227320997,12.12870649,180.16,180.08,19.14]
[1747227321502,12.12870649,180.17,180.08,19.14]
[1747227321704,12.12870649,180.16,180.08,19.14]
[1747227321902,12.12870649,180.15,180.08,19.14]
[1747227322107,12.12870649,180.15,180.07,7.863]
[1747227322108,12.12870649,180.14,180.07,7.863]
[1747227322289,5.55185431,180.12,180.07,7.863]
[1747227322490,17.6805608,180.12,180.07,7.863]
[1747227323097,5.55185431,180.12,180.07,7.863]
[1747227324308,31.56019659,180.12,180.07,7.863]
[1747227324513,12.12870649,180.1,180.07,1.5308]
[1747227324808,19.4314901,180.12,180.06,4.96212121]
[1747227324809,12.12870649,180.08,180.06,4.96212121]
[1747227325106,12.12870649,180.07,180.06,4.96212121]
[1747227326312,36.61607439,180.07,180.06,4.96212121]
[1747227327418,18.64964886,180.03,179.92,10.20090247]
[1747227327583,12.12870649,179.97,179.92,10.20090247]
[1747227327784,26.0,180.04,179.92,10.20090247]
[1747227328087,12.12870649,180.0,179.92,15.75887635]
[1747227328286,17.68470978,179.99,179.92,10.20090247]
[1747227328487,12.12870649,179.98,179.92,10.20090247]
[1747227328890,12.12870649,179.97,179.92,1.5502]
[1747227329413,12.12870649,179.98,179.92,1.5502]
[1747227329615,12.12870649,180.01,179.92,7.10814502]
[1747227329913,12.12870649,180.02,179.92,7.10814502]
[1747227330302,12.12870649,179.99,179.92,7.10814502]
[1747227330506,12.12870649,179.99,179.92,7.07985491]
[1747227330895,12.12870649,179.98,179.92,1.52190989]
[1747227331803,12.12870649,179.97,179.92,1.52190989]
[1747227332317,5.55679039,179.96,179.92,1.52190989]
[1747227332500,17.68549688,179.96,179.92,1.52190989]
[1747227332810,17.68519724,179.97,179.92,1.52190989]
[1747227333009,26.0,180.02,179.92,1.52190989]
[1747227333010,5.55620898,179.98,179.92,1.52190989]
[1747227333389,12.12870649,179.97,179.92,1.52190989]
[1747227333592,12.12870649,179.96,179.92,1.52190989]
[1747227333822,17.68491547,179.98,179.92,1.52190989]
[1747227333988,13.8853967,180.05,179.92,27.52190989]
[1747227334401,5.55524693,180.01,179.92,33.07993481]
[1747227334613,17.68395342,180.01,179.92,33.07993481]
[1747227335134,12.12870649,180.05,179.93,18.79181043]
[1747227335429,12.12870649,180.04,179.92,46.97499928]
[1747227335999,5.55462978,180.03,179.92,46.97499928]
[1747227337534,12.12870649,180.04,179.92,46.97499928]
[1747227338197,12.12870649,180.03,179.93,19.14]
[1747227338722,12.12870649,180.04,179.93,19.14]
[1747227339497,5.55462978,180.03,179.94,5.55740802]
[1747227339823,17.68333627,180.03,179.94,5.55740802]
[1747227340426,12.12870649,180.01,179.94,19.14]
[1747227340730,12.12870649,180.02,179.94,19.14]
[1747227341137,19.44120423,180.03,179.94,19.14]
[1747227341314,17.68333627,180.03,179.94,19.14]
[1747227341790,17.68333627,180.03,179.94,24.69732271]
[1747227342245,5.55462978,180.03,179.94,24.69732271]
[1747227342917,12.12870649,180.03,179.94,24.69732271]
[1747227343117,12.12870649,180.03,179.94,19.14]
[1747227344238,5.55493834,180.02,179.94,19.14]
[1747227344607,12.12870649,180.01,179.94,19.14]
[1747227344947,12.12870649,180.01,179.93,19.14]
[1747227345240,12.12870649,180.0,179.92,27.52190989]
[1747227345408,12.12870649,179.98,179.92,46.66190989]
[1747227345628,12.12870649,179.98,179.92,20.66190989]
[1747227346026,5.55648163,179.97,179.92,1.52190989]
[1747227346642,31.5763922,179.97,179.92,1.52190989]
[1747227346848,31.67692699,179.97,179.92,13.75115117]
[1747227347067,31.67692699,179.97,179.92,1.52190989]
[1747227347221,31.67692699,179.97,179.92,13.75115117]
[1747227347562,19.44768571,179.97,179.92,13.75115117]
[1747227347723,31.67692699,179.97,179.92,13.75115117]
[1747227347930,19.44768571,179.97,179.93,12.22924128]
[1747227348135,19.44768571,179.97,179.92,1.52190989]
[1747227348435,12.22924128,179.96,179.92,1.52190989]
[1747227348646,12.22924128,179.95,179.92,1.52190989]
[1747227348955,12.22924128,179.96,179.89,6.40151515]
[1747227349293,12.22924128,179.94,179.89,18.63075643]
[1747227349624,12.22924128,179.93,179.89,6.40151515]
[1747227350138,12.22924128,179.94,179.89,18.63075643]
[1747227350664,5.55771688,179.93,179.89,6.40151515]
[1747227350824,12.22924128,179.9,179.89,6.40151515]
[1747227352772,17.78788497,179.9,179.89,6.40151515]
[1747227352926,5.55864369,179.9,179.89,6.40151515]
[1747227353688,17.78788497,179.9,179.89,6.40151515]
[1747227353855,5.55864369,179.9,179.89,6.40151515]
[1747227356858,17.787576,179.91,179.89,6.40151515]
[1747227357990,5.55833472,179.91,179.89,6.40151515]
[1747227358571,12.22924128,179.94,179.9,12.22924128]
[1747227358872,26.12198926,179.95,179.9,12.22924128]
[1747227359073,5.55648163,179.97,179.94,12.22924128]
[1747227359384,5.55648163,179.97,179.95,12.22924128]
[1747227359786,5.55648163,179.97,179.89,39.50665897]
[1747227359997,5.55648163,179.97,179.94,12.22924128]
[1747227360184,19.44683125,179.98,179.94,12.22924128]
[1747227361687,5.5561729,179.98,179.96,12.22924128]
[1747227362099,5.55586421,179.99,179.96,12.22924128]
[1747227362291,5.55586421,179.99,179.95,12.22924128]
[1747227362607,12.22924128,179.98,179.9,19.14]
[1747227362911,12.22924128,179.98,179.93,12.22924128]
[1747227363099,12.22924128,179.97,179.93,12.22924128]
[1747227363997,12.22924128,179.98,179.93,12.22924128]
[1747227365495,12.22924128,179.99,179.94,12.22924128]
[1747227365883,12.22924128,179.99,179.95,12.22924128]
[1747227366067,5.5561729,179.98,179.95,12.22924128]
[1747227366266,5.5561729,179.98,179.9,19.14]
[1747227366462,5.5561729,179.98,179.94,12.22924128]
[1747227366698,5.5561729,179.98,179.9,24.69861215]
[1747227367002,5.5561729,179.98,179.94,12.22924128]
[1747227367492,5.5561729,179.98,179.95,12.22924128]
[1747227368063,12.22924128,180.02,179.97,12.22924128]
[1747227368293,13.88698275,180.03,179.99,12.22924128]
[1747227368294,19.44161253,180.03,179.99,12.22924128]
[1747227368497,5.55462978,180.03,180.0,12.22924128]
[1747227368895,5.55462978,180.03,180.01,12.22924128]
[1747227369467,5.55462978,180.03,180.0,12.22924128]
[1747227369987,5.55432126,180.04,180.01,12.22924128]
[1747227371375,5.55432126,180.04,180.0,12.22924128]
[1747227371892,19.44012441,180.04,180.0,12.22924128]
[1747227372099,5.55432126,180.04,180.03,12.22924128]
[1747227372490,5.55432126,180.04,180.01,12.22924128]
[1747227373173,12.22924128,180.03,179.97,1.5094]
[1747227373374,12.22924128,180.03,179.98,12.22924128]
[1747227373602,31.66936569,180.04,180.0,12.22924128]
[1747227374398,19.44012441,180.04,180.01,12.22924128]
[1747227374584,19.44012441,180.04,180.02,12.22924128]
[1747227375409,19.44012441,180.04,180.0,12.22924128]
[1747227375583,19.44012441,180.04,179.97,1.5094]
[1747227375775,19.44012441,180.04,180.0,12.22924128]
[1747227377206,19.44012441,180.04,180.01,12.22924128]
[1747227378503,19.44012441,180.04,180.0,12.22924128]
[1747227379114,12.22924128,180.03,179.98,12.22924128]
[1747227379407,12.22924128,180.02,179.98,12.22924128]
[1747227380283,5.55524693,180.01,179.98,12.22924128]
[1747227381100,19.44336425,180.01,179.97,13.73864128]
[1747227381493,19.44336425,180.01,179.98,12.22924128]
[1747227381810,19.44336425,180.01,179.97,1.5094]
[1747227381988,19.44336425,180.01,179.98,12.22924128]
[1747227382885,12.22924128,179.99,179.92,12.22924128]
[1747227383078,47.2195989,180.01,179.88,1.5064]
[1747227383079,12.22924128,179.94,179.88,1.5064]
[1747227383285,12.22924128,179.94,179.89,18.63075643]
[1747227383888,12.22924128,179.95,179.9,12.22924128]
[1747227384308,30.87889014,180.0,179.89,18.63075643]
[1747227384309,12.22924128,179.94,179.89,18.63075643]
[1747227384922,19.4520091,179.93,179.89,18.63075643]
[1747227385219,19.4520091,179.93,179.9,12.22924128]
[1747227385385,19.4520091,179.93,179.89,18.63075643]
[1747227386200,19.4520091,179.93,179.89,6.40151515]
[1747227386596,19.4520091,179.93,179.89,18.63075643]
[1747227387303,19.4520091,179.93,179.89,6.40151515]
[1747227387493,19.4520091,179.93,179.89,18.63075643]
[1747227387893,19.4520091,179.93,179.89,6.40151515]
[1747227388206,19.4520091,179.93,179.89,18.63075643]
[1747227388818,5.55771688,179.93,179.92,12.22924128]
[1747227389322,12.22924128,179.96,179.91,12.22924128]
[1747227389918,12.22924128,179.94,179.89,37.83075643]
[1747227390100,27.78337873,179.97,179.89,6.40151515]
[1747227390302,12.22924128,179.92,179.89,6.40151515]
[1747227391530,5.55833472,179.91,179.89,6.40151515]
[1747227392026,17.787576,179.91,179.89,6.40151515]
[1747227392534,12.22924128,179.9,179.89,6.40151515]
[1747227393626,17.78788497,179.9,179.89,6.40151515]
[1747227394007,5.55864369,179.9,179.89,6.40151515]
[1747227394905,17.78788497,179.9,179.89,6.40151515]
[1747227395645,17.93004654,179.9,179.89,6.40151515]
[1747227395928,18.07220811,179.9,179.89,6.40151515]
[1747227396139,20.7844042,179.9,179.89,6.40151515]
[1747227396313,39.43405306,179.9,179.89,6.40151515]
[1747227396851,20.7844042,179.9,179.89,6.40151515]
[1747227397329,39.43405306,179.9,179.89,6.40151515]
[1747227399865,17.78788497,179.9,179.89,6.40151515]
[1747227403755,39.52014074,179.9,179.89,6.40151515]
[1747227406035,20.87049188,179.9,179.89,6.40151515]
[1747227406440,17.78788497,179.9,179.89,6.40151515]
[1747227407662,20.82882971,179.9,179.89,6.40151515]
[1747227407870,39.47847857,179.9,179.89,6.40151515]
[1747227409265,20.82882971,179.9,179.89,6.40151515]
[1747227409454,17.78788497,179.9,179.89,6.40151515]
[1747227410352,5.55864369,179.9,179.89,6.40151515]
[1747227411149,17.78788497,179.9,179.89,6.40151515]
[1747227411452,5.55864369,179.9,179.89,6.40151515]
[1747227413878,17.78788497,179.9,179.89,6.40151515]
[1747227414643,18.07220811,179.9,179.89,6.40151515]
[1747227416171,5.55864369,179.9,179.89,6.40151515]
[1747227416548,17.78788497,179.9,179.89,6.40151515]
[1747227417162,5.55864369,179.9,179.89,6.40151515]
[1747227418467,17.78788497,179.9,179.89,6.40151515]
[1747227418871,5.55864369,179.9,179.89,6.40151515]
[1747227419176,17.78788497,179.9,179.89,6.40151515]
[1747227420774,18.07220811,179.9,179.89,6.40151515]
[1747227421949,17.78788497,179.9,179.89,6.40151515]
[1747227424589,5.55864369,179.9,179.89,6.40151515]
[1747227425154,12.22924128,179.93,179.89,6.40151515]
[1747227426253,12.22924128,179.92,179.89,6.40151515]
[1747227426452,12.22924128,179.91,179.89,6.40151515]
[1747227426782,12.22924128,179.92,179.89,6.40151515]
[1747227427358,5.55833472,179.91,179.89,6.40151515]
[1747227429080,5.55833472,179.91,179.9,12.22924128]
[1747227429455,12.22924128,179.97,179.9,12.22924128]
[1747227429686,12.22924128,179.96,179.91,12.22924128]
[1747227430556,12.22924128,179.97,179.92,12.22924128]
[1747227430866,12.22924128,179.98,179.93,12.22924128]
[1747227431268,12.22924128,179.99,179.94,12.22924128]
[1747227431474,19.44660517,179.98,179.94,12.22924128]
[1747227431977,31.67584645,179.98,179.93,12.22924128]
[1747227432781,12.22924128,179.97,179.93,12.22924128]
[1747227433084,12.22924128,179.96,179.91,32.84924128]
[1747227433260,12.22924128,179.97,179.92,12.22924128]
[1747227433760,13.89043227,179.98,179.92,12.22924128]
[1747227433963,12.22924128,179.97,179.92,12.22924128]
[1747227434268,12.22924128,179.96,179.91,20.62]
[1747227434470,12.22924128,179.96,179.91,32.84924128]
[1747227435194,13.89043227,179.98,179.91,20.62]
[1747227435378,13.89043227,179.98,179.91,32.84924128]
[1747227435564,13.89043227,179.98,179.95,12.22924128]
[1747227436482,13.89043227,179.98,179.91,32.84924128]
[1747227436483,27.7669795,180.07,179.97,12.22924128]
[1747227436796,27.7669795,180.07,179.98,12.22924128]
[1747227436797,12.22924128,180.03,179.98,12.22924128]
[1747227437309,33.60469854,180.07,179.96,1.5298]
[1747227437310,0.28432314,180.06,179.96,1.5298]
[1747227437614,12.22924128,180.04,179.99,12.22924128]
[1747227437789,19.44120423,180.03,179.99,12.22924128]
[1747227437974,31.67044551,180.03,179.96,1.5298]
[1747227438302,19.44120423,180.03,179.99,12.22924128]
[1747227438478,31.67044551,180.03,179.99,12.22924128]
[1747227439188,5.55462978,180.03,180.0,12.22924128]
[1747227439429,5.55462978,180.03,180.01,12.22924128]
[1747227439783,5.55401277,180.05,180.01,12.22924128]
[1747227440408,12.22924128,180.04,179.96,1.5298]
[1747227440707,12.22924128,180.04,179.99,12.22924128]
[1747227441385,19.4390447,180.05,179.99,12.22924128]
[1747227441386,12.22924128,180.03,179.99,12.22924128]
[1747227441591,12.22924128,180.03,179.98,12.22924128]
[1747227442003,5.55493834,180.02,179.98,12.22924128]
[1747227442305,19.44228419,180.02,179.99,12.22924128]
[1747227442604,5.55493834,180.02,180.0,12.22924128]
[1747227443187,5.55493834,180.02,179.96,22.5698]
[1747227443603,12.22924128,180.0,179.96,1.5298]
[1747227443805,19.44228419,180.02,179.96,13.75904128]
[1747227444002,19.44228419,180.02,179.97,12.22924128]
[1747227444003,31.67152547,180.02,179.97,12.22924128]
[1747227444889,19.44228419,180.02,179.98,12.22924128]
[1747227445499,12.22924128,180.01,179.97,12.22924128]
[1747227445703,31.67152547,180.02,179.97,12.22924128]
[1747227446207,5.55555555,180.0,179.97,12.22924128]
[1747227446419,5.55555555,180.0,179.98,12.22924128]
[1747227446593,5.55555555,180.0,179.96,1.5298]
[1747227446786,5.55555555,180.0,179.98,12.22924128]
[1747227447918,5.55555555,180.0,179.96,1.5298]
[1747227448292,19.44336425,180.01,179.97,12.22924128]
[1747227448725,5.55524693,180.01,179.98,12.22924128]
[1747227449219,5.55524693,180.01,179.99,12.22924128]
[1747227449786,5.55462978,180.03,179.99,12.22924128]
[1747227450025,5.55462978,180.03,180.01,12.22924128]
[1747227450224,5.55401277,180.05,180.01,12.22924128]
[1747227450800,31.66828598,180.05,179.96,1.5298]
[1747227451116,5.55401277,180.05,180.02,12.22924128]
[1747227451323,5.55401277,180.05,180.03,12.22924128]
[1747227452323,12.22924128,180.04,180.0,21.0]
[1747227452824,12.22924128,180.05,180.01,12.22924128]
[1747227453316,12.22924128,180.05,180.0,33.22924128]
[1747227453706,12.22924128,180.04,180.0,21.0]
[1747227454096,19.43688565,180.07,180.01,12.22924128]
[1747227454327,3.03214909,180.11,180.0,21.0]
[1747227454328,12.22924128,180.06,180.02,12.22924128]
[1747227454532,12.22924128,180.06,180.01,12.22924128]
[1747227455512,12.22924128,180.05,180.01,12.22924128]
[1747227456420,12.22924128,180.06,180.02,12.22924128]
[1747227456914,12.22924128,180.08,180.03,12.22924128]
[1747227457419,12.22924128,180.08,180.0,21.0]
[1747227457603,12.22924128,180.07,180.02,12.22924128]
[1747227458300,5.55370432,180.06,180.02,12.22924128]
[1747227459932,5.55370432,180.06,180.03,12.22924128]
[1747227461106,12.22924128,180.08,180.03,12.22924128]
[1747227461304,12.22924128,180.09,180.04,12.22924128]
[1747227461707,19.43256897,180.11,180.05,12.22924128]
[1747227461993,19.43256897,180.11,180.07,12.22924128]
[1747227462104,19.43256897,180.11,180.08,12.22924128]